bitfinex-derivatives/quotes_ETHF0:USTF0_20210406
["timestamp","ask_amount","ask_price","bid_price","bid_amount"]
[1617745650590,32.0,2110.1,2109.0,0.69]
[1617745650989,32.0,2110.1,2107.4,5.83]
[1617745651189,32.0,2110.1,2107.4,7.83]
[1617745651388,32.0,2110.1,2109.1,5.91]
[1617745651589,32.0,2110.1,2107.5,5.39]
[1617745651989,32.0,2110.1,2109.2,4.68]
[1617745652190,32.0,2110.1,2107.5,5.85]
[1617745652391,2.90695,2109.3,2108.6,2.90695]
[1617745652589,5.29795,2109.3,2108.6,2.90695]
[1617745652790,5.29795,2109.3,2108.7,5.74]
[1617745654292,2.90695,2108.8,2108.7,5.74]
[1617745654491,32.0,2110.1,2108.7,5.74]
[1617745654692,2.0,2110.1,2108.7,7.6571]
[1617745655092,13.1852,2110.2,2108.7,7.6571]
[1617745656292,2.90695,2110.0,2109.9,2.90695]
[1617745656692,2.90695,2110.0,2109.9,8.69695]
[1617745656893,2.90695,2110.0,2109.9,7.69695]
[1617745659299,13.1852,2110.2,2109.9,7.69695]
[1617745659500,13.1852,2110.2,2109.9,10.37425]
[1617745660000,16.571,2111.4,2109.9,10.37425]
[1617745660201,14.0,2111.4,2109.9,10.37425]
[1617745660401,14.0,2111.4,2111.1,2.90695]
[1617745660600,14.0,2111.4,2111.1,5.21945]
[1617745660807,14.0,2111.4,2111.2,5.74]
[1617745662400,16.90695,2111.4,2111.3,2.90695]
[1617745662802,16.90695,2111.4,2111.3,5.72]
[1617745663202,16.90695,2111.4,2111.2,5.68]
[1617745663601,16.90695,2111.4,2111.3,5.83]
[1617745663802,16.90695,2111.4,2111.2,5.94]
[1617745664205,16.90695,2111.4,2111.3,4.77]
[1617745664402,16.90695,2111.4,2111.3,2.90695]
[1617745664601,16.90695,2111.4,2111.3,5.86]
[1617745665002,16.90695,2111.4,2111.2,5.73]
[1617745665404,16.90695,2111.4,2111.3,5.91]
[1617745665604,16.90695,2111.4,2110.1,5.73]
[1617745665805,16.90695,2111.4,2110.0,2.0]
[1617745666007,16.90695,2111.4,2111.3,5.89]
[1617745666204,16.90695,2111.4,2110.5,2.235]
[1617745666404,16.90695,2111.4,2111.3,2.90695]
[1617745666604,16.90695,2111.4,2111.3,8.61695]
[1617745666804,16.90695,2111.4,2110.6,5.79]
[1617745667004,16.90695,2111.4,2110.5,2.235]
[1617745667204,16.90695,2111.4,2111.3,5.76]
[1617745667405,16.90695,2111.4,2110.6,5.77]
[1617745667807,16.90695,2111.4,2111.3,5.75]
[1617745668005,16.90695,2111.4,2110.7,1.8684]
[1617745668206,16.90695,2111.4,2110.8,3.11]
[1617745668407,14.0,2111.4,2111.3,5.61]
[1617745668609,14.0,2111.4,2111.1,2.90695]
[1617745668808,14.0,2111.4,2111.2,5.74]
[1617745669409,14.0,2111.4,2111.2,7.7683]
[1617745670412,2.90695,2111.3,2111.2,7.7683]
[1617745673115,14.0,2111.4,2111.2,7.7683]
[1617745673916,14.0,2111.4,2111.3,2.0]
[1617745674318,14.0,2111.4,2111.3,7.9]
[1617745674926,14.0,2111.4,2111.3,5.9]
[1617745679933,1.1,2113.3,2111.3,5.9]
[1617745680132,12.9716,2113.5,2111.3,5.9]
[1617745680533,12.9716,2113.5,2112.8,2.90695]
[1617745680736,12.9716,2113.5,2112.8,5.41675]
[1617745680933,12.9716,2113.5,2112.9,5.92]
[1617745682534,2.90695,2113.0,2112.9,5.92]
[1617745683636,2.90695,2113.0,2112.9,4.92]
[1617745683840,5.36045,2113.0,2111.4,5.85]
[1617745684241,2.0,2112.9,2111.4,5.85]
[1617745684443,0.01389559,2112.7,2109.8,5.7]
[1617745684639,2.8914,2111.5,2111.2,2.90695]
[1617745684841,2.8914,2111.5,2111.3,3.73]
[1617745685845,2.8914,2111.5,2111.3,2.73]
[1617745686648,2.90695,2111.4,2111.3,2.73]
[1617745687047,0.01388381,2112.3,2111.3,2.73]
[1617745687250,0.01388629,2112.4,2111.3,2.73]
[1617745687649,0.01389061,2112.5,2111.3,2.73]
[1617745688050,0.01389781,2112.8,2111.3,2.73]
[1617745688450,12.62600091,2112.9,2111.3,2.73]
[1617745688650,12.62600091,2112.9,2112.3,2.90695]
[1617745688850,12.62600091,2112.9,2112.4,5.94]
[1617745689051,0.01390119,2112.8,2112.4,5.94]
[1617745689451,12.62600157,2112.9,2112.4,5.94]
[1617745690652,2.90695,2112.5,2112.4,5.94]
[1617745694257,32.90695,2112.5,2112.4,4.94]
[1617745694456,2.90695,2112.5,2110.9,0.9553]
[1617745694654,2.90695,2112.2,2111.9,2.90695]
[1617745695055,2.90695,2112.2,2112.0,5.83]
[1617745695457,2.90695,2112.2,2112.0,7.9277]
[1617745695656,0.01387219,2113.2,2112.0,7.9277]
[1617745696055,0.01391038,2113.1,2112.0,7.9277]
[1617745696256,0.01391298,2113.2,2112.0,9.9277]
[1617745696658,0.01391473,2113.3,2112.9,2.90695]
[1617745696859,0.01391473,2113.3,2112.9,5.64475]
[1617745697061,0.01391473,2113.3,2113.0,5.82]
[1617745697860,0.01391413,2113.4,2113.0,5.82]
[1617745698260,12.99942826,2113.5,2113.0,5.82]
[1617745698560,12.99942826,2113.5,2113.4,2.90695]
[1617745698961,12.9716,2113.5,2113.4,5.06655]
[1617745699160,12.9716,2113.5,2113.4,10.81655]
[1617745701565,2.90695,2113.7,2113.4,10.81655]
[1617745711978,1.0,2114.0,2113.4,10.81655]
[1617745712780,3.90695,2114.0,2113.9,2.90695]
[1617745713079,3.90695,2114.0,2113.9,8.61695]
[1617745713279,3.90695,2114.0,2113.9,10.98995]
[1617745720690,1.0,2114.0,2113.9,10.98995]
[1617745721091,1.0,2114.0,2113.9,12.98995]
[1617745722694,0.338,2114.0,2113.9,12.98995]
[1617745723493,0.1364,2114.0,2113.9,12.98995]
[1617745724294,2.90695,2114.8,2113.9,12.98995]
[1617745724493,1.1,2116.0,2113.9,12.98995]
[1617745724894,1.1,2116.0,2115.2,2.90695]
[1617745725095,1.1,2116.0,2115.2,4.85785]
[1617745725296,1.1,2116.0,2115.3,5.78]
[1617745725496,12.3824,2116.5,2115.3,5.78]
[1617745725497,3.671,2116.1,2115.3,5.78]
[1617745725699,1.1,2116.0,2115.3,5.78]
[1617745726899,1.1,2116.0,2115.5,2.90695]
[1617745727299,1.1,2116.0,2115.6,5.81]
[1617745728901,2.90695,2115.7,2115.6,5.81]
[1617745743220,3.84785,2115.7,2115.6,5.81]
[1617745743621,2.76835,2115.7,2115.6,5.81]
[1617745746321,2.76835,2115.7,2114.7,5.95]
[1617745746721,2.76835,2115.7,2115.6,5.75]
[1617745746922,2.76835,2115.7,2114.8,5.8]
[1617745747121,2.90695,2114.9,2114.8,5.8]
[1617745747324,2.90695,2114.9,2114.4,2.90695]
[1617745747722,2.90695,2114.9,2114.5,5.91]
[1617745748922,2.90695,2114.9,2113.6,5.7]
[1617745749325,2.3183,2115.3,2114.6,5.76]
[1617745749527,2.3183,2115.3,2114.4,5.88]
[1617745749927,2.3183,2115.3,2114.7,5.81]
[1617745750124,2.3183,2115.3,2114.4,5.81]
[1617745750524,2.3183,2115.3,2114.8,5.89]
[1617745750824,2.3183,2115.3,2114.4,5.83]
[1617745751224,2.3183,2115.3,2114.9,5.77]
[1617745751425,2.3183,2115.3,2114.4,5.8]
[1617745751625,2.3183,2115.3,2115.0,5.88]
[1617745752027,2.3183,2115.3,2114.4,5.88]
[1617745752428,2.3183,2115.3,2115.1,5.93]
[1617745752626,2.3183,2115.3,2114.4,5.85]
[1617745752826,30.0,2115.7,2114.4,5.85]
[1617745753026,30.0,2115.7,2115.2,5.93]
[1617745753226,2.90695,2115.3,2114.4,5.82]
[1617745753526,2.90695,2115.3,2114.3,2.90695]
[1617745753927,2.90695,2115.3,2114.5,5.81]
[1617745754127,2.90695,2115.3,2114.3,2.90695]
[1617745754530,2.90695,2115.3,2114.6,5.71]
[1617745754729,2.90695,2115.3,2114.4,5.77]
[1617745754929,2.90695,2115.3,2114.3,2.90695]
[1617745755129,2.90695,2115.3,2114.7,5.91]
[1617745755329,2.90695,2114.8,2114.4,5.9]
[1617745755728,2.90695,2114.8,2114.3,2.90695]
[1617745755927,2.90695,2114.8,2114.4,5.84]
[1617745757231,2.90695,2114.5,2114.4,5.84]
[1617745758631,4.90355,2114.5,2114.4,5.84]
[1617745760639,34.90355,2114.5,2114.4,5.84]
[1617745761040,4.90355,2114.5,2114.4,5.84]
[1617745768952,4.90355,2114.5,2112.9,5.68]
[1617745769152,4.90355,2114.5,2112.9,7.68]
[1617745769354,30.0,2114.9,2113.8,2.90695]
[1617745769753,30.0,2114.9,2113.9,2.99]
[1617745771255,32.8994,2114.8,2114.1,2.90695]
[1617745771756,32.8994,2114.8,2114.2,5.78]
[1617745772858,2.8994,2114.8,2114.2,5.78]
[1617745773057,32.0,2115.2,2114.2,5.78]
[1617745773259,30.0,2115.2,2114.6,2.90695]
[1617745773457,30.0,2115.2,2114.2,5.78]
[1617745773859,30.0,2115.2,2113.1,5.78]
[1617745774063,30.0,2115.2,2114.3,5.9]
[1617745774459,30.0,2115.2,2113.8,2.4193]
[1617745774660,30.0,2115.2,2114.4,5.81]
[1617745775061,30.0,2115.2,2113.1,5.85]
[1617745775460,30.0,2115.2,2114.5,5.76]
[1617745775660,30.0,2115.2,2114.4,2.90695]
[1617745775861,30.0,2115.2,2114.5,5.8]
[1617745776060,30.0,2115.1,2114.5,5.8]
[1617745777361,2.90695,2114.6,2114.5,5.8]
[1617745778464,43.4239,2115.5,2114.5,5.8]
[1617745778863,13.4239,2115.5,2114.5,5.8]
[1617745779363,13.4239,2115.5,2115.2,2.90695]
[1617745779767,13.4239,2115.5,2115.3,5.85]
[1617745780565,13.4239,2115.5,2115.3,8.3151]
[1617745782864,0.02777602,2116.6,2115.3,8.3151]
[1617745783265,0.05555203,2116.7,2115.3,8.3151]
[1617745783266,0.02777602,2116.7,2115.3,8.3151]
[1617745783465,0.02777602,2116.7,2116.0,2.90695]
[1617745783865,0.02777602,2116.7,2116.1,5.95]
[1617745784271,0.02777435,2116.8,2116.1,5.95]
[1617745784670,0.02777386,2116.9,2116.1,5.95]
[1617745785471,2.90695,2116.2,2116.1,5.95]
[1617745790380,13.9579,2117.4,2116.1,5.95]
[1617745791180,12.8579,2117.4,2116.1,5.95]
[1617745791580,12.8579,2117.4,2116.9,2.90695]
[1617745791780,12.8579,2117.4,2116.9,5.51435]
[1617745791979,12.8579,2117.4,2117.0,5.92]
[1617745792982,0.02782238,2117.2,2117.0,5.92]
[1617745793380,12.8579,2117.4,2117.0,5.92]
[1617745793579,2.90695,2117.1,2117.0,5.92]
[1617745798988,0.02773772,2117.9,2117.0,5.92]
[1617745799192,0.02773399,2118.0,2117.0,5.92]
[1617745799392,1.1,2118.1,2117.0,5.92]
[1617745799592,1.1,2118.1,2117.5,2.90695]
[1617745799992,1.1,2118.1,2117.6,5.7]
[1617745801597,2.90695,2117.7,2117.6,5.7]
[1617745810505,3.85895,2117.7,2117.6,5.7]
[1617745810906,2.90695,2117.7,2117.6,5.7]
[1617745811507,2.90695,2117.7,2117.6,6.6407]
[1617745811707,2.90695,2117.7,2117.6,5.7]
[1617745816111,16.90695,2117.7,2117.6,5.7]
[1617745816313,16.90695,2117.7,2117.6,4.7]
[1617745816715,16.90695,2117.7,2117.3,5.8]
[1617745816915,16.90695,2117.7,2117.6,2.95]
[1617745817315,16.90695,2117.7,2116.0,2.0]
[1617745817515,16.90695,2117.7,2117.6,4.83]
[1617745817914,16.90695,2117.7,2117.0,2.90695]
[1617745818116,16.90695,2117.7,2117.6,5.74]
[1617745818515,16.90695,2117.7,2115.8,2.8417]
[1617745818715,16.90695,2117.7,2117.6,5.67]
[1617745819116,16.90695,2117.7,2116.5,2.0325]
[1617745819315,16.90695,2117.7,2117.6,5.63]
[1617745819715,46.90695,2117.7,2117.0,2.90695]
[1617745819915,46.90695,2117.7,2117.6,5.88]
[1617745820315,46.90695,2117.7,2117.1,0.04]
[1617745820517,46.90695,2117.7,2117.6,5.27]
[1617745820916,46.90695,2117.7,2116.7,0.53]
[1617745821116,49.91955,2117.7,2117.6,5.73]
[1617745821519,49.91955,2117.7,2116.9,5.7]
[1617745821718,2.90695,2117.0,2116.8,5.68]
[1617745821917,2.90695,2117.0,2116.6,2.90695]
[1617745822118,2.90695,2117.0,2116.7,5.88]
[1617745823321,2.90695,2117.0,2116.7,8.441]
[1617745825822,3.84485,2117.0,2116.7,8.441]
[1617745827224,14.0,2117.7,2116.7,8.441]
[1617745827725,14.0,2117.7,2117.1,2.90695]
[1617745828125,14.0,2117.7,2117.2,8.9234]
[1617745829629,14.0,2117.7,2117.2,9.8816]
[1617745829830,2.90695,2117.3,2117.2,8.9234]
[1617745836246,14.0,2117.7,2117.2,8.9234]
[1617745837447,14.9477,2117.7,2117.2,8.9234]
[1617745837748,14.9477,2117.7,2117.6,2.90695]
[1617745838150,14.0,2117.7,2117.6,8.76695]
[1617745839852,16.90695,2117.7,2117.6,8.76695]
[1617745843852,16.90695,2117.7,2117.6,5.86]
[1617745844257,16.90695,2117.7,2117.3,5.71]
[1617745844655,16.90695,2117.7,2117.3,6.6454]
[1617745844854,16.90695,2117.7,2117.3,5.71]
[1617745845754,14.0,2117.7,2117.4,2.90695]
[1617745846155,14.0,2117.7,2117.5,5.91]
[1617745847454,14.0,2117.7,2116.3,5.82]
[1617745847656,16.1944,2117.7,2116.3,5.82]
[1617745847855,16.1944,2117.7,2117.6,5.87]
[1617745848057,16.1944,2117.7,2117.1,2.90695]
[1617745848255,16.1944,2117.7,2117.2,0.29]
[1617745848455,16.1944,2117.7,2117.6,5.79]
[1617745848656,16.1944,2117.7,2117.1,2.90695]
[1617745848855,16.1944,2117.7,2117.2,5.69]
[1617745849056,16.1944,2117.7,2117.6,5.84]
[1617745849257,16.1944,2117.7,2117.1,2.90695]
[1617745849456,46.1944,2117.7,2117.3,5.7]
[1617745849658,46.1944,2117.7,2117.6,5.89]
[1617745849859,49.10135,2117.7,2116.5,2.90695]
[1617745850058,49.10135,2117.7,2117.3,5.72]
[1617745850262,49.10135,2117.7,2117.6,5.74]
[1617745850459,49.10135,2117.7,2116.6,4.99]
[1617745850659,49.10135,2117.7,2117.4,5.81]
[1617745850860,49.10135,2117.7,2117.6,5.87]
[1617745851061,49.10135,2117.7,2116.6,5.95]
[1617745851263,49.10135,2117.7,2117.5,5.91]
[1617745851461,49.10135,2117.7,2117.6,5.71]
[1617745851862,49.10135,2117.7,2116.7,5.7]
[1617745852061,49.10135,2117.7,2116.6,5.93]
[1617745852462,2.0,2117.6,2116.8,5.68]
[1617745852661,30.0,2117.5,2116.6,5.7]
[1617745852862,32.0,2117.5,2116.9,5.85]
[1617745853262,32.0,2117.5,2116.7,5.94]
[1617745853461,32.0,2117.5,2117.0,5.85]
[1617745853862,4.93535,2117.1,2116.8,5.87]
[1617745854066,30.0,2117.0,2116.1,5.87]
[1617745854266,30.0,2117.0,2116.0,2.94]
[1617745854463,32.0,2117.0,2116.9,5.26]
[1617745854663,32.0,2117.0,2116.2,5.76]
[1617745854863,32.0,2117.0,2116.1,3.75]
[1617745855063,32.0,2117.0,2116.9,5.82]
[1617745855464,32.0,2117.0,2116.3,0.3]
[1617745855663,32.0,2117.0,2116.9,5.64]
[1617745856072,32.0,2117.0,2116.4,0.66]
[1617745856265,32.0,2117.0,2116.3,3.74]
[1617745856465,32.0,2117.0,2116.5,5.74]
[1617745856866,32.0,2117.0,2115.7,5.74]
[1617745857066,32.0,2117.0,2116.6,5.93]
[1617745857464,32.0,2117.0,2115.6,5.76]
[1617745857666,32.9455,2117.0,2115.6,5.76]
[1617745857865,2.90695,2115.7,2115.6,5.76]
[1617745858069,5.61565,2115.7,2115.6,5.76]
[1617745859866,5.61565,2115.7,2114.9,2.90695]
[1617745860266,5.61565,2115.7,2115.6,5.7]
[1617745860466,5.61565,2115.7,2115.0,5.88]
[1617745860668,35.61565,2115.7,2113.8,3.51]
[1617745860867,35.61565,2115.7,2115.6,5.92]
[1617745861067,35.61565,2115.7,2113.8,5.95]
[1617745861467,35.61565,2115.7,2115.6,5.75]
[1617745861668,35.61565,2115.7,2113.8,5.82]
[1617745861868,32.7087,2115.7,2114.6,2.90695]
[1617745862068,32.7087,2115.7,2115.6,5.9]
[1617745862468,32.7087,2115.7,2114.7,5.93]
[1617745862669,32.7087,2115.7,2115.6,5.86]
[1617745862969,32.7087,2115.7,2114.7,5.91]
[1617745863369,32.7087,2115.7,2115.6,5.73]
[1617745863568,32.7087,2115.7,2114.7,5.94]
[1617745863968,2.90695,2114.8,2114.7,5.94]
[1617745864173,30.0,2116.7,2114.7,5.94]
[1617745864371,2.0,2116.6,2114.7,5.94]
[1617745864570,32.8292,2116.5,2114.7,5.94]
[1617745864770,34.8292,2116.5,2114.7,5.94]
[1617745865871,2.90695,2114.8,2114.7,5.94]
[1617745866070,5.28185,2114.8,2114.7,5.94]
[1617745866671,5.28185,2114.8,2113.2,5.94]
[1617745866870,5.28185,2114.8,2114.7,5.71]
[1617745867275,5.28185,2114.8,2113.4,5.81]
[1617745867470,5.28185,2114.8,2114.7,5.67]
[1617745867870,5.28185,2114.8,2114.2,2.90695]
[1617745868070,5.28185,2114.8,2114.7,5.53]
[1617745868272,35.28185,2114.8,2114.7,5.53]
[1617745868471,35.28185,2114.8,2114.3,0.27]
[1617745868670,35.28185,2114.8,2114.7,5.83]
[1617745869071,35.28185,2114.8,2114.4,5.86]
[1617745869271,35.28185,2114.8,2114.7,5.68]
[1617745869672,35.28185,2114.8,2114.5,5.74]
[1617745869872,35.28185,2114.8,2114.7,5.85]
[1617745870278,35.28185,2114.8,2114.6,5.82]
[1617745870479,35.28185,2114.8,2114.7,5.6]
[1617745870881,35.28185,2114.8,2113.9,2.90695]
[1617745871686,35.28185,2114.8,2114.0,5.84]
[1617745872083,2.90695,2114.1,2114.0,5.84]
[1617745872281,4.74475,2114.1,2114.0,5.84]
[1617745873584,34.74475,2114.1,2114.0,5.84]
[1617745875383,34.74475,2114.1,2112.2,5.7]
[1617745875585,34.74475,2114.1,2112.3,2.0]
[1617745875784,34.74475,2114.1,2114.0,5.91]
[1617745875985,34.74475,2114.1,2112.4,5.2]
[1617745876188,34.74475,2114.1,2113.1,2.90695]
[1617745876385,4.74475,2114.1,2113.1,2.90695]
[1617745876589,2.90695,2114.1,2113.2,5.91]
[1617745878186,30.0,2115.2,2113.9,2.90695]
[1617745878387,30.0,2115.2,2114.0,5.91]
[1617745880091,2.90695,2114.1,2114.0,5.91]
[1617745882393,2.90695,2114.1,2113.4,2.90695]
[1617745882593,2.90695,2114.1,2113.5,2.93]
[1617745882794,2.90695,2114.1,2114.0,5.77]
[1617745882995,2.90695,2114.1,2113.4,2.90695]
[1617745883194,2.90695,2114.1,2113.6,5.8]
[1617745883395,2.90695,2114.1,2114.0,5.69]
[1617745883595,2.90695,2114.1,2113.4,2.90695]
[1617745883795,2.90695,2114.1,2113.7,5.85]
[1617745884001,2.90695,2114.1,2114.0,5.84]
[1617745884198,2.90695,2114.1,2113.8,2.90695]
[1617745884398,2.90695,2114.1,2113.8,8.35695]
[1617745884597,2.90695,2114.1,2114.0,0.02]
[1617745884999,2.90695,2114.1,2113.8,2.90695]
[1617745885198,2.90695,2114.1,2113.9,5.7]
[1617745885398,2.90695,2114.1,2114.0,5.93]
[1617745885600,2.90695,2114.1,2113.8,2.90695]
[1617745885799,2.90695,2114.1,2114.0,2.3627]
[1617745886000,12.5805,2115.4,2114.0,8.1027]
[1617745886199,12.5805,2115.4,2114.7,2.90695]
[1617745886403,12.5805,2115.4,2114.7,5.81905]
[1617745886607,12.5805,2115.4,2114.8,5.9]
[1617745887803,1.1,2116.6,2114.8,5.9]
[1617745888206,1.1,2116.6,2115.9,2.90695]
[1617745888404,1.1,2116.6,2115.9,5.43475]
[1617745888605,1.1,2116.6,2116.0,5.83]
[1617745888809,31.1,2116.6,2116.0,5.83]
[1617745889410,1.1,2116.6,2116.0,5.83]
[1617745890105,1.1,2116.6,2116.3,2.90695]
[1617745890505,1.1,2116.6,2116.4,5.76]
[1617745890706,1.1,2116.6,2116.4,8.7254]
[1617745890907,13.6126,2117.1,2116.4,8.7254]
[1617745891107,14.7126,2117.1,2116.4,8.7254]
[1617745892209,1.1,2117.1,2117.0,2.90695]
[1617745892415,15.1,2117.7,2117.0,5.40355]
[1617745892610,14.0,2117.7,2117.1,5.89]
[1617745894315,14.0,2117.7,2117.6,5.07555]
[1617745894713,14.0,2117.7,2117.6,10.98555]
[1617745896415,14.0,2117.7,2117.6,12.98555]
[1617745897617,13.5466,2117.7,2117.6,12.98555]
[1617745897817,12.5911,2117.7,2117.6,12.98555]
[1617745899019,2.0,2118.3,2117.6,12.98555]
[1617745900222,2.0,2118.3,2118.2,2.90695]
[1617745900422,2.0,2118.3,2118.2,4.95735]
[1617745900825,2.0,2118.3,2118.2,10.78735]
[1617745903329,2.90695,2118.8,2118.2,10.78735]
[1617745903527,2.0,2118.4,2118.2,10.78735]
[1617745908246,2.90695,2118.3,2118.2,7.8804]
[1617745909242,2.90695,2118.3,2118.2,5.83]
[1617745909642,2.90695,2118.3,2116.5,5.93]
[1617745909843,32.90695,2118.3,2115.9,5.89]
[1617745910041,32.90695,2118.3,2113.6,3.1]
[1617745910242,30.0,2118.3,2116.9,2.90695]
[1617745910443,12.9825,2118.2,2116.9,2.90695]
[1617745910644,30.0,2118.1,2117.0,0.02]
[1617745910846,32.2087,2118.1,2117.0,0.02]
[1617745912348,2.90695,2117.1,2117.0,0.02]
[1617745914748,2.90695,2117.1,2115.2,5.68]
[1617745914950,32.90695,2117.1,2115.2,5.68]
[1617745915551,34.00695,2117.1,2114.7,5.74]
[1617745915751,36.00695,2117.1,2113.8,5.9]
[1617745915951,36.00695,2117.1,2113.5,5.69]
[1617745916149,36.00695,2117.1,2114.8,5.75]
[1617745916351,14.7569,2117.0,2115.0,2.90695]
[1617745916556,30.0,2116.9,2115.0,2.90695]
[1617745916749,30.0,2116.9,2115.1,2.91]
[1617745917454,30.951,2116.9,2113.5,5.73]
[1617745917653,34.051,2116.9,2113.6,5.85]
[1617745917854,34.051,2116.9,2115.2,5.78]
[1617745918053,34.051,2116.9,2113.1,3.17]
[1617745918252,34.051,2116.9,2113.7,5.6]
[1617745918454,5.74985,2114.6,2113.7,5.6]
[1617745918653,5.74985,2114.6,2112.5,2.0]
[1617745918856,5.74985,2114.6,2114.5,3.77]
[1617745919053,5.74985,2114.6,2112.6,5.94]
[1617745919254,5.74985,2114.6,2112.7,2.0]
[1617745919454,5.74985,2114.6,2114.5,5.78]
[1617745919654,5.74985,2114.6,2112.8,0.07]
[1617745920458,2.90695,2114.1,2113.9,2.90695]
[1617745920856,2.90695,2114.1,2114.0,5.76]
[1617745921457,2.8429,2114.6,2114.0,5.76]
[1617745922359,2.90695,2114.1,2114.0,5.76]
[1617745924761,5.76875,2114.1,2114.0,5.76]
[1617745925162,2.8618,2114.1,2114.0,5.76]
[1617745925562,30.0,2116.4,2114.0,5.76]
[1617745925762,30.0,2116.4,2114.0,8.3558]
[1617745925963,42.6352,2116.8,2114.0,8.3558]
[1617745926465,42.6352,2116.8,2115.5,2.90695]
[1617745926662,42.6352,2116.8,2115.5,4.78185]
[1617745926861,12.6352,2116.8,2115.5,4.78185]
[1617745927064,12.6352,2116.8,2115.6,5.95]
[1617745928364,12.6352,2116.8,2115.9,2.90695]
[1617745928965,12.6352,2116.8,2116.0,5.88]
[1617745929165,12.6352,2116.8,2116.0,8.452]
[1617745930370,12.6352,2116.8,2116.6,2.90695]
[1617745930568,12.6352,2116.8,2116.6,5.44525]
[1617745930868,12.6352,2116.8,2116.7,5.68]
[1617745932471,15.54215,2116.8,2116.7,5.68]
[1617745934174,45.54215,2116.8,2116.7,5.68]
[1617745934570,45.54215,2116.8,2116.2,2.90695]
[1617745934771,45.54215,2116.8,2116.3,3.48]
[1617745934971,45.54215,2116.8,2116.7,1.7312]
[1617745935172,45.54215,2116.8,2114.7,2.0]
[1617745935371,47.54215,2116.8,2113.4,5.0639]
[1617745935570,47.54215,2116.8,2113.4,4.126]
[1617745935772,47.54215,2116.8,2113.4,2.126]
[1617745935972,47.54215,2116.8,2113.5,5.77]
[1617745936371,48.64215,2116.8,2113.5,5.77]
[1617745936572,45.7352,2116.8,2113.4,0.9498]
[1617745936771,45.7352,2116.8,2112.3,0.9371]
[1617745936772,45.7352,2116.8,2113.6,5.64]
[1617745937172,45.7352,2116.8,2112.3,0.9371]
[1617745937173,45.7352,2116.8,2113.1,2.2325]
[1617745937372,45.7352,2116.8,2113.7,2.43]
[1617745937773,45.7352,2116.8,2113.1,2.2325]
[1617745937973,45.7352,2116.8,2113.8,5.84]
[1617745938375,45.7352,2116.8,2113.6,2.9808]
[1617745938672,45.7352,2116.8,2113.9,5.83]
[1617745938872,45.7352,2116.8,2114.4,5.72]
[1617745939273,44.6352,2116.8,2114.1,2.2158]
[1617745939473,44.6352,2116.8,2114.5,5.71]
[1617745939773,44.6352,2116.8,2114.2,3.22]
[1617745939974,44.6352,2116.8,2114.1,2.2158]
[1617745940173,45.7352,2116.8,2114.6,5.75]
[1617745940373,45.7352,2116.8,2114.2,5.77]
[1617745940573,45.7352,2116.8,2114.6,2.90695]
[1617745940775,45.7352,2116.8,2114.7,5.69]
[1617745941176,11.0,2116.7,2114.7,5.69]
[1617745941375,32.0,2116.6,2114.7,5.69]
[1617745942576,2.90695,2114.8,2114.7,5.69]
[1617745942777,32.0,2116.6,2114.7,5.69]
[1617745942976,32.0,2116.6,2114.7,8.0873]
[1617745943176,30.0,2116.6,2114.7,8.0873]
[1617745944477,30.0,2116.6,2115.5,2.90695]
[1617745945076,30.0,2116.6,2115.6,5.69]
[1617745946079,11.0,2116.7,2115.6,5.69]
[1617745946281,41.0,2116.7,2115.6,5.69]
[1617745946478,2.90695,2115.7,2115.6,5.69]
[1617745949183,2.90695,2115.7,2114.8,5.94]
[1617745949582,2.90695,2115.7,2115.6,5.93]
[1617745949782,2.90695,2115.7,2114.8,5.77]
[1617745949783,32.90695,2115.7,2114.8,5.77]
[1617745950182,32.90695,2115.7,2115.6,5.76]
[1617745950384,32.90695,2115.7,2113.7,2.0]
[1617745950586,32.0,2115.7,2114.9,5.72]
[1617745950787,32.0,2115.7,2115.6,5.69]
[1617745951187,32.0,2115.7,2114.0,5.9]
[1617745951389,32.0,2115.7,2115.6,5.69]
[1617745951788,32.0,2115.7,2114.0,5.87]
[1617745951988,30.0,2115.7,2114.0,5.87]
[1617745952888,30.0,2115.6,2113.8,5.87]
[1617745953088,12.9076,2116.9,2113.8,7.87]
[1617745953288,25.6094,2116.9,2114.1,5.8]
[1617745953489,25.6094,2116.9,2114.2,32.0]
[1617745953699,18.5141,2116.9,2114.2,34.2618]
[1617745953898,12.8007,2116.9,2114.2,39.9618]
[1617745954093,12.8007,2116.9,2114.3,1.1]
[1617745954302,12.8007,2116.9,2114.4,5.79]